[Event "DVM U12 2019"]
[Site "Magedburg"]
[Date "2019.12.27"]
[Round "1"]
[White "Kempe, Caius Emilian"]
[Black "Uhlmann, Tim"]
[Result "1-0"]
[ECO "B14"]
[WhiteElo "1832"]
[BlackElo "1446"]
[Annotator "NA"]
[PlyCount "107"]
[EventDate "2019.12.27"]
[EventType "team-tourn"]
[EventRounds "7"]
[EventCountry "GER"]
[SourceTitle "playchess.com"]
[Source "ChessBase"]
[SourceQuality "1"]
[WhiteTeam "USV TU Dresden"]
[BlackTeam "SF Neureut"]
[TimeControl "40/5400+30:1800+30"]

1. d4 {[%emt 0:00:00]} d5 {[%emt 0:00:00]} 2. c4 {[%emt 0:00:00]} e6 {[%emt 0:00:00]} 3. Nc3 {[%emt 0:00:19]} c5 {[%emt 0:00:00]} 4. e3 {[%emt 0:01:32]} cxd4 {[%emt 0:00:05]} 5. exd4 {[%emt 0:00:20]} Nf6 {[%emt 0:00:11]} 6. Nf3 {[%emt 0:00:31]} Nc6 {[%emt 0:00:54]} 7. Be2 {[%emt 0:02:49]} a6 {[%emt 0:00:52] B14: Caro-Kann: Panov-Botvinnik Attack with 5...e6 and 5...g6} (7... dxc4 8. Bxc4 Bb4 9. O-O O-O 10. Bg5 Bxc3 11. bxc3 b6 12. Qe2 Bb7 13. Rfd1 Ne7 14. Ne5 Rc8 15. Rac1 Qd6 16. Bd3 Ng6 17. Bxf6 gxf6 18. Ng4 {1-0 (59) Peng,X (2427)-Li,D (2450) Tianjin 2018}) 8. a4 {[%emt 0:00:32]} Ne4 {[%emt 0:03:19]} 9. O-O {[%emt 0:02:50]} Bb4 {[%emt 0:02:37]} 10. Qc2 {[%emt 0:04:03]} Bxc3 $146 {[%emt 0:02:55]} ({Predecessor:} 10... f5 11. Be3 Bxc3 12. bxc3 O-O 13. Ne5 f4 14. Nxc6 bxc6 15. f3 {1-0 (70) Suomalainen,E (2156)-Iivonen,M (2019) Finland 2014}) 11. bxc3 {[%emt 0:00:15]} O-O {[%emt 0:00:22]} 12. Ne5 {[%emt 0:12:47]} f6 {[%emt 0:01:34]} 13. Nxc6 {[%emt 0:01:01]} bxc6 {[%emt 0:00:11]} 14. f3 {[%emt 0:01:26]} Nd6 {[%emt 0:02:50]} 15. c5 {[%emt 0:00:50] unterminated} Nb7 {[%emt 0:04:08] unterminated} 16. Bd3 {[%emt 0:03:32] unterminated} f5 {[%emt 0:03:30]} 17. Bf4 {[%emt 0:01:27] unterminated} Qd7 {[%emt 0:03:18]} 18. Rfe1 {[%emt 0:01:23]} Nd8 {[%emt 0:02:07] unterminated} 19. Rab1 {[%emt 0:03:56] unterminated} Nf7 {[%emt 0:02:06]} 20. a5 {[%emt 0:04:50]} Bb7 {[%emt 0:03:17]} 21. Rb6 {[%emt 0:00:49]} g5 {[%emt 0:01:43]} 22. Bg3 {[%emt 0:00:30]} Kg7 {[%emt 0:01:05]} 23. Be5+ {[%emt 0:01:35] unterminated} Nxe5 {[%emt 0:00:36]} 24. Rxe5 {[%emt 0:00:01] unterminated} Rf6 {[%emt 0:04:11] unterminated} 25. Qe2 {[%emt 0:01:55]} Qc8 {[%emt 0:03:10] unterminated} 26. Qd2 {[%emt 0:01:50]} h6 {[%emt 0:01:18]} 27. Re1 {[%emt 0:02:47] unterminated} Ra7 {[%emt 0:04:23] unterminated} 28. Qe2 {[%emt 0:03:04]} h5 {[%emt 0:02:39] unterminated} 29. Qd2 {[%emt 0:06:01] unterminated} Kg6 {[%emt 0:11:20] unterminated} 30. Qe2 {[%emt 0:03:20]} Kg7 {[%emt 0:01:39] unterminated} 31. Qb2 {[%emt 0:03:20]} Rf7 {[%emt 0:02:08]} 32. Re5 {[%emt 0:01:40] unterminated} g4 {[%emt 0:02:05]} 33. Qf2 {[%emt 0:03:17] unterminated} Qd7 {[%emt 0:09:54] unterminated} 34. Qe3 {[%emt 0:04:38] unterminated} Rf6 {[%emt 0:01:54]} 35. fxg4 {[%emt 0:02:59] unterminated} hxg4 {[%emt 0:00:58] unterminated} 36. Qf4 {[%emt 0:03:37] unterminated} Qc7 {[%emt 0:06:35] unterminated} 37. g3 {[%emt 0:06:59] unterminated} Qd7 {[%emt 0:02:23] unterminated} 38. Re2 {[%emt 0:02:41] unterminated} Rf7 {[%emt 0:03:13] unterminated} 39. Qe5+ {[%emt 0:05:16] unterminated} Rf6 {[%emt 0:00:40] unterminated} 40. Qb8 {[%emt 0:02:54]} Bc8 {[%emt 0:00:55] unterminated} 41. Qd6 $18 {[%emt 0:14:11]} Kf7 {[%emt 0:05:22]} 42. Qxc6 {[%emt 0:01:03]} Qxc6 {[%emt 0:00:20]} 43. Rxc6 {[%emt 0:00:08]} Ra8 {[%emt 0:00:25]} 44. Rb2 {[%emt 0:01:49]} Ke7 {[%emt 0:01:40]} 45. Rd6 {[%emt 0:01:18]} Rf8 {[%emt 0:00:42]} 46. Rbb6 {[%emt 0:01:16]} Rd8 {[%emt 0:00:13]} 47. Rxd8 {[%emt 0:03:25]} Kxd8 {[%emt 0:00:13]} 48. Kf2 {[%emt 0:00:14]} Ke7 {[%emt 0:00:17]} 49. Ke3 {[%emt 0:00:30]} Kd7 {[%emt 0:00:10]} 50. Kf4 {[%emt 0:00:07]} Ke8 {[%emt 0:00:14]} 51. Ke5 {[%emt 0:00:22] unterminated} Ke7 {[%emt 0:00:20]} 52. c4 {[%emt 0:00:30] unterminated} dxc4 {[%emt 0:00:34]} 53. Bxc4 {[%emt 0:00:02]} Ra7 {[%emt 0:00:46] unterminated} 54. Bxe6 {[%emt 0:00:32] unterminated} 1-0

[Event "DVM U12 2019"]
[Site "Magedburg"]
[Date "2019.12.27"]
[Round "1"]
[White "Krüger, Arthur"]
[Black "Beyer, Lorenz"]
[Result "1-0"]
[ECO "C00"]
[WhiteElo "1693"]
[BlackElo "1274"]
[Annotator "NA RC"]
[PlyCount "27"]
[EventDate "2019.12.27"]
[EventType "team-tourn"]
[EventRounds "7"]
[EventCountry "GER"]
[SourceTitle "playchess.com"]
[Source "ChessBase"]
[SourceQuality "1"]
[WhiteTeam "Hamburger SK"]
[BlackTeam "Barnimer SF"]
[TimeControl "40/5400+30:1800+30"]

1. e4 {[%emt 0:00:00]} e6 {[%emt 0:00:00]} 2. d4 {[%emt 0:00:00]} d5 {[%emt 0:00:00]} 3. Bd3 {[%emt 0:00:00]} Be7 {[%emt 0:03:08]} 4. e5 {[%emt 0:01:52]} c5 {[%emt 0:00:17]} 5. c3 {[%emt 0:00:33]} Nc6 {[%emt 0:01:24]} 6. Be3 {[%emt 0:06:51]} Qb6 {[%emt 0:05:48]} 7. Qd2 {[%emt 0:08:17]} Bd7 {[%emt 0:02:49]} 8. Nf3 {[%emt 0:02:59]} cxd4 {[%emt 0:04:13]} 9. cxd4 {[%emt 0:05:07]} f6 {[%emt 0:03:22]} 10. O-O {[%emt 0:12:03]} Nb4 {[%emt 0:03:24]} 11. Be2 {[%emt 0:02:38]} Bb5 {[%emt 0:01:21]} 12. Bxb5+ {[%emt 0:03:27]} Qxb5 {[%emt 0:00:13]} 13. Nc3 {[%emt 0:02:33]} fxe5 {[%emt 0:01:51]} 14. Nxb5 {[%emt 0:00:27] normal} 1-0

[Event "DVM U12 2019"]
[Site "Magedburg"]
[Date "2019.12.27"]
[Round "1"]
[White "Hoffmann, Kay"]
[Black "Fuhrmann, Bahne"]
[Result "0-1"]
[ECO "A03"]
[WhiteElo "1621"]
[BlackElo "1603"]
[Annotator "NA RC"]
[PlyCount "64"]
[EventDate "2019.12.27"]
[EventType "team-tourn"]
[EventRounds "7"]
[EventCountry "GER"]
[SourceTitle "playchess.com"]
[Source "ChessBase"]
[SourceQuality "1"]
[WhiteTeam "Barnimer SF"]
[BlackTeam "Hamburger SK"]
[TimeControl "40/5400+30:1800+30"]

1. f4 {[%emt 0:00:00]} d5 {[%emt 0:00:00]} 2. Nf3 {[%emt 0:00:00]} Nh6 3. e3 {[%emt 0:00:00]} g6 {[%emt 0:00:03]} 4. Be2 {[%emt 0:00:28]} Bg7 {[%emt 0:00:14]} 5. O-O {[%emt 0:00:32]} O-O {[%emt 0:00:22]} 6. Nc3 {[%emt 0:01:16]} Bf5 {[%emt 0:09:06]} 7. d3 {[%emt 0:04:25]} c6 {[%emt 0:05:39]} 8. e4 {[%emt 0:05:07]} Qb6+ {[%emt 0:01:31]} 9. Kh1 {[%emt 0:01:11]} dxe4 {[%emt 0:07:28]} 10. Nxe4 {[%emt 0:00:22]} Ng4 {[%emt 0:07:32]} 11. Nfg5 {[%emt 0:06:44]} Ne3 {[%emt 0:03:28]} 12. Bxe3 {[%emt 0:00:10]} Qxe3 {[%emt 0:00:06]} 13. Qe1 {[%emt 0:05:06]} h6 {[%emt 0:04:08]} 14. g4 {[%emt 0:08:18]} Bc8 {[%emt 0:02:47]} 15. Rf3 {[%emt 0:15:59]} Qb6 {[%emt 0:02:46]} 16. Qh4 {[%emt 0:06:56]} Qxb2 {[%emt 0:05:53]} 17. Rg1 {[%emt 0:00:45]} f5 {[%emt 0:16:28]} 18. gxf5 {[%emt 0:02:48]} Bxf5 {[%emt 0:01:03]} 19. Nh3 {[%emt 0:05:49]} Qxc2 {[%emt 0:04:07]} 20. Bd1 {[%emt 0:02:39]} Qxa2 {[%emt 0:04:32]} 21. Qxe7 {[%emt 0:02:08]} Qf7 {[%emt 0:04:53]} 22. Qh4 {[%emt 0:01:21]} Qe6 {[%emt 0:03:36]} 23. Nc5 {[%emt 0:01:50]} Qf6 {[%emt 0:01:36]} 24. Bb3+ {[%emt 0:02:52]} Kh8 {[%emt 0:00:45]} 25. Ng5 {[%emt 0:00:41]} Nd7 {[%emt 0:00:52]} 26. Nce4 {[%emt 0:00:44]} Bxe4 {[%emt 0:02:23]} 27. dxe4 {[%emt 0:00:10]} Nc5 {[%emt 0:00:57]} 28. e5 {[%emt 0:02:21]} Qf5 {[%emt 0:00:56]} 29. Ba2 {[%emt 0:00:55]} Ne4 {[%emt 0:01:55]} 30. Rh3 {[%emt 0:04:16]} Nxg5 {[%emt 0:03:36]} 31. Rxg5 {[%emt 0:00:39]} Qe4+ {[%emt 0:01:12]} 32. Rg2 {[%emt 0:00:06]} Rxf4 {[%emt 0:00:55] normal} 0-1

[Event "DVM U12 2019"]
[Site "Magedburg"]
[Date "2019.12.27"]
[Round "1"]
[White "Brandstrup, Luca Alexander"]
[Black "Dominick, Maximilian"]
[Result "1-0"]
[ECO "B08"]
[WhiteElo "1602"]
[BlackElo "1120"]
[Annotator "NA RC"]
[PlyCount "55"]
[EventDate "2019.12.27"]
[EventType "team-tourn"]
[EventRounds "7"]
[EventCountry "GER"]
[SourceTitle "playchess.com"]
[Source "ChessBase"]
[SourceQuality "1"]
[WhiteTeam "Hamburger SK"]
[BlackTeam "Barnimer SF"]
[TimeControl "40/5400+30:1800+30"]

1. e4 {[%emt 0:00:00]} g6 {[%emt 0:00:00]} 2. d4 {[%emt 0:00:29]} Bg7 {[%emt 0:00:04]} 3. Nc3 {[%emt 0:02:17]} d6 {[%emt 0:00:49]} 4. Nf3 {[%emt 0:03:10]} Nf6 {[%emt 0:02:17]} 5. e5 {[%emt 0:03:42]} Nfd7 {[%emt 0:07:38]} 6. Qe2 {[%emt 0:02:52]} dxe5 {[%emt 0:09:06]} 7. dxe5 {[%emt 0:00:28]} O-O {[%emt 0:03:38]} 8. e6 {[%emt 0:01:46]} Nf6 {[%emt 0:06:30]} 9. exf7+ {[%emt 0:00:51]} Rxf7 {[%emt 0:02:28]} 10. Ng5 {[%emt 0:01:02]} Rf8 {[%emt 0:02:34]} 11. Ne6 {[%emt 0:00:23]} Bxe6 {[%emt 0:01:56]} 12. Qxe6+ {[%emt 0:00:08]} Kh8 {[%emt 0:01:28]} 13. Bc4 {[%emt 0:04:03]} Nbd7 {[%emt 0:07:51]} 14. Be3 {[%emt 0:03:31]} b6 {[%emt 0:07:33]} 15. O-O-O {[%emt 0:03:03]} a6 {[%emt 0:08:50]} 16. Bg5 {[%emt 0:02:35]} h6 {[%emt 0:00:54]} 17. Bxf6 {[%emt 0:00:41]} Rxf6 {[%emt 0:04:39]} 18. Qxd7 {[%emt 0:00:36]} Qxd7 {[%emt 0:01:01]} 19. Rxd7 {[%emt 0:00:09]} Rxf2 {[%emt 0:01:07]} 20. Rxc7 {[%emt 0:00:49]} b5 {[%emt 0:00:33]} 21. Bb3 {[%emt 0:00:41]} Re8 {[%emt 0:01:14]} 22. g3 {[%emt 0:02:33]} e5 {[%emt 0:00:18]} 23. Bd5 {[%emt 0:01:10]} Ref8 {[%emt 0:03:12]} 24. h4 {[%emt 0:01:44]} h5 {[%emt 0:01:06]} 25. Ne4 {[%emt 0:03:00]} Bh6+ {[%emt 0:04:00]} 26. Kd1 {[%emt 0:02:17]} R2f3 {[%emt 0:02:19]} 27. Ng5 {[%emt 0:01:27]} Rxg3 {[%emt 0:00:33]} 28. Rh7# {normal} 1-0

[Event "DVM U12 2019"]
[Site "Magedburg"]
[Date "2019.12.27"]
[Round "1"]
[White "Fischer, Darja"]
[Black "Freude, Max"]
[Result "1/2-1/2"]
[ECO "E32"]
[WhiteElo "1546"]
[BlackElo "1809"]
[Annotator "NA"]
[PlyCount "90"]
[EventDate "2019.12.27"]
[EventType "team-tourn"]
[EventRounds "7"]
[EventCountry "GER"]
[SourceTitle "playchess.com"]
[Source "ChessBase"]
[SourceQuality "1"]
[WhiteTeam "Karlsruher SF"]
[BlackTeam "SV Empor Berlin"]
[TimeControl "40/5400+30:1800+30"]

1. d4 {[%emt 0:00:00]} Nf6 {[%emt 0:00:00]} 2. c4 {[%emt 0:00:00]} e6 {[%emt 0:00:00]} 3. Nc3 {[%emt 0:00:00]} Bb4 {[%emt 0:00:00]} 4. Qc2 {[%emt 0:05:51]} O-O {[%emt 0:00:00]} 5. Bg5 {[%emt 0:01:14]} h6 {[%emt 0:01:01]} 6. Bh4 {[%emt 0:00:09]} d5 {[%emt 0:00:52]} 7. cxd5 {[%emt 0:02:33]} exd5 {[%emt 0:00:40]} 8. e3 {[%emt 0:08:49]} Re8 {[%emt 0:09:22]} 9. Nf3 {[%emt 0:03:33]} c6 {[%emt 0:07:57]} 10. Bd3 {[%emt 0:03:02] unterminated} Nbd7 {[%emt 0:06:45]} 11. O-O {[%emt 0:03:16] unterminated} Qa5 {[%emt 0:05:00] unterminated} 12. Ne2 {[%emt 0:04:59] unterminated D52: Queen's Gambit Declined: Cambridge Springs Variation} (12. a3 Bxc3 13. bxc3 Ne4 14. c4 Nb6 15. c5 Nd7 16. a4 Re6 17. Bxe4 Rxe4 18. Bg3 Re6 19. Nd2 Nf6 {1-0 (33) Ruck,R (2557)-Krasenkow,M (2655) Ohrid 2001}) 12... Ne4 {[%emt 0:05:42] unterminated} 13. a3 {[%emt 0:04:54]} Bd6 {[%emt 0:01:54] unterminated} 14. Nc3 $146 {[%emt 0:04:33]} ({Predecessor:} 14. b4 Qc7 15. Rfc1 a6 16. Rab1 f5 17. Bg3 Nxg3 18. hxg3 g6 19. a4 Nf6 {1-0 (30) Stolba,M (2093)-Zvara,D (2009) Czechia 2011}) 14... Nxc3 {[%emt 0:02:44]} 15. Qxc3 {[%emt 0:00:42]} Qxc3 {[%emt 0:00:20]} 16. bxc3 {[%emt 0:00:05]} g5 {[%emt 0:00:39]} 17. Bg3 {[%emt 0:00:04]} Bxg3 {[%emt 0:00:37]} 18. hxg3 {[%emt 0:00:07]} g4 {[%emt 0:01:58]} 19. Nd2 {[%emt 0:10:32]} Nf6 {[%emt 0:01:59]} 20. Rfe1 {[%emt 0:01:46]} Ne4 {[%emt 0:01:18]} 21. Bxe4 {[%emt 0:02:10]} dxe4 {[%emt 0:00:32]} 22. Nb3 {[%emt 0:01:16]} b6 {[%emt 0:00:48]} 23. Nc1 {[%emt 0:00:30]} Be6 {[%emt 0:01:12]} 24. Ne2 {[%emt 0:00:19]} Rac8 {[%emt 0:01:10]} 25. Nf4 {[%emt 0:01:37]} Bc4 {[%emt 0:01:30]} 26. Rac1 {[%emt 0:00:41]} Red8 {[%emt 0:01:42] unterminated} 27. Red1 {[%emt 0:02:22]} Bb3 {[%emt 0:01:15]} 28. Re1 {[%emt 0:01:21] unterminated} c5 {[%emt 0:02:52]} 29. Rf1 {[%emt 0:02:24]} Rd6 {[%emt 0:04:27] unterminated} 30. Rfe1 {[%emt 0:02:28]} f5 {[%emt 0:02:46] unterminated} 31. Rf1 {[%emt 0:03:09]} Kf7 {[%emt 0:03:31] unterminated} 32. Rfe1 {[%emt 0:03:03]} Rd7 {[%emt 0:01:59] unterminated} (32... b5 $15) 33. Rb1 {[%emt 0:05:05]} Bc2 {[%emt 0:06:21]} 34. Rbc1 {[%emt 0:01:01]} Bb3 {[%emt 0:00:39]} 35. Rb1 {[%emt 0:00:12]} Bc2 {[%emt 0:00:05]} 36. Rbc1 {[%emt 0:00:04]} Ba4 {[%emt 0:00:04] unterminated} 37. d5 {[%emt 0:11:53] unterminated} b5 {[%emt 0:04:45]} 38. Rb1 {[%emt 0:03:10]} a6 {[%emt 0:01:06] unterminated} 39. Rb2 {[%emt 0:00:19] unterminated} a5 {[%emt 0:07:42] unterminated} 40. Rc1 {[%emt 0:03:43] unterminated} Rb8 {[%emt 0:02:30] unterminated} 41. Rcb1 {[%emt 0:32:17] unterminated} Ke7 {[%emt 0:32:46] unterminated} 42. Kf1 {[%emt 0:03:31] unterminated} Kd6 {[%emt 0:02:58] unterminated} 43. Ke2 {[%emt 0:01:06] unterminated} Rdb7 {[%emt 0:01:22]} 44. Rh1 {[%emt 0:00:45] unterminated} Rh7 {[%emt 0:01:46] unterminated} 45. Rh5 $11 {[%emt 0:01:04]} Rf8 {[%emt 0:05:30] normal} 1/2-1/2

[Event "DVM U12 2019"]
[Site "Magedburg"]
[Date "2019.12.27"]
[Round "1"]
[White "Freude, Paul"]
[Black "Kossert, Simon"]
[Result "*"]
[ECO "B33"]
[WhiteElo "1491"]
[BlackElo "1343"]
[Annotator "NA RC"]
[PlyCount "71"]
[EventDate "2019.12.27"]
[EventType "team-tourn"]
[EventRounds "7"]
[EventCountry "GER"]
[SourceTitle "playchess.com"]
[Source "ChessBase"]
[SourceQuality "1"]
[WhiteTeam "SV Empor Berlin"]
[BlackTeam "Karlsruher SF"]
[TimeControl "40/5400+30:1800+30"]

1. e4 {[%emt 0:00:00]} c5 {[%emt 0:00:00]} 2. Nf3 {[%emt 0:00:00]} Nc6 {[%emt 0:00:00]} 3. d4 {[%emt 0:00:00]} cxd4 {[%emt 0:00:00]} 4. Nxd4 {[%emt 0:00:10]} Nf6 {[%emt 0:00:14]} 5. Nc3 {[%emt 0:01:16]} e6 {[%emt 0:00:49]} 6. Be3 {[%emt 0:00:39]} Bb4 {[%emt 0:01:14]} 7. f3 {[%emt 0:01:17]} O-O {[%emt 0:01:07]} 8. Be2 {[%emt 0:00:50]} d5 {[%emt 0:06:12]} 9. Nxc6 {[%emt 0:06:07]} bxc6 {[%emt 0:00:15]} 10. e5 {[%emt 0:00:46]} Nd7 {[%emt 0:01:33]} 11. f4 {[%emt 0:06:18]} f6 {[%emt 0:00:24]} 12. exf6 {[%emt 0:02:36]} Qxf6 {[%emt 0:02:09]} 13. O-O {[%emt 0:05:14]} Bxc3 {[%emt 0:00:47]} 14. bxc3 {[%emt 0:00:42]} Qxc3 {[%emt 0:00:55]} 15. Bd4 {[%emt 0:01:59]} Qa5 {[%emt 0:04:53]} 16. Bd3 {[%emt 0:04:29]} c5 {[%emt 0:02:07]} 17. Qh5 {[%emt 0:11:25]} g6 {[%emt 0:00:59]} 18. Bxg6 {[%emt 0:01:04]} Nf6 {[%emt 0:02:09]} 19. Bxh7+ {[%emt 0:07:18]} Kh8 {[%emt 0:02:55]} 20. Bxf6+ {[%emt 0:10:33]} Rxf6 {[%emt 0:00:17]} 21. Rf3 {[%emt 0:01:06]} Qc7 {[%emt 0:05:40]} 22. Bd3+ {[%emt 0:04:30]} Kg8 {[%emt 0:02:33]} 23. Qh4 {[%emt 0:03:29]} Rf7 {[%emt 0:04:39]} 24. Rh3 {[%emt 0:03:40]} Kf8 {[%emt 0:05:05]} 25. Qg5 {[%emt 0:01:50]} Ke8 {[%emt 0:04:21]} 26. Bb5+ {[%emt 0:01:28]} Bd7 {[%emt 0:00:49]} 27. Qg8+ {[%emt 0:03:14]} Rf8 {[%emt 0:01:19]} 28. Qxe6+ {[%emt 0:00:44]} Kd8 {[%emt 0:00:29]} 29. Qxd5 {[%emt 0:01:10]} Rb8 {[%emt 0:01:35]} 30. Bxd7 {[%emt 0:00:33]} Qxd7 {[%emt 0:01:34]} 31. Qxc5 {[%emt 0:00:36]} Rc8 {[%emt 0:01:09]} 32. Qxf8+ {[%emt 0:00:23]} Kc7 {[%emt 0:00:54]} 33. Qc5+ {[%emt 0:03:29]} Kb8 {[%emt 0:00:29]} 34. Rb1+ {[%emt 0:01:05]} Ka8 {[%emt 0:00:02] unterminated} 35. Qe5 {[%emt 0:01:03]} Re8 {[%emt 0:01:35]} 36. Rh8 {[%emt 0:01:11] unterminated} *

[Event "DVM U12 2019"]
[Site "Magedburg"]
[Date "2019.12.27"]
[Round "1"]
[White "Richter, Nicholas"]
[Black "Braun, Justus"]
[Result "1-0"]
[ECO "A40"]
[WhiteElo "1448"]
[BlackElo "1260"]
[Annotator "NA RC"]
[PlyCount "37"]
[EventDate "2019.12.27"]
[EventType "team-tourn"]
[EventRounds "7"]
[EventCountry "GER"]
[SourceTitle "playchess.com"]
[Source "ChessBase"]
[SourceQuality "1"]
[WhiteTeam "USV TU Dresden"]
[BlackTeam "SF Neureut"]
[TimeControl "40/5400+30:1800+30"]

1. d4 {[%emt 0:00:00]} e6 {[%emt 0:00:00]} 2. c4 {[%emt 0:01:35]} d6 {[%emt 0:00:00]} 3. e4 {[%emt 0:01:19]} Nd7 {[%emt 0:00:14]} 4. Nc3 {[%emt 0:02:56]} Ne7 {[%emt 0:00:45]} 5. Bd3 {[%emt 0:09:52]} b6 {[%emt 0:00:44]} 6. Nge2 {[%emt 0:02:00]} Bb7 {[%emt 0:00:33]} 7. Be3 {[%emt 0:02:43]} g6 {[%emt 0:00:17]} 8. Qd2 {[%emt 0:01:15]} Bg7 {[%emt 0:00:30]} 9. f3 {[%emt 0:06:37]} e5 {[%emt 0:01:14]} 10. d5 {[%emt 0:00:54]} O-O {[%emt 0:00:17]} 11. g4 {[%emt 0:08:28]} Nc5 {[%emt 0:00:22]} 12. Bc2 {[%emt 0:00:58]} Qd7 {[%emt 0:01:05]} 13. h4 {[%emt 0:01:40]} c6 {[%emt 0:01:12]} 14. h5 {[%emt 0:03:48]} cxd5 {[%emt 0:00:54]} 15. exd5 {[%emt 0:02:07]} Rac8 {[%emt 0:01:51]} 16. Bh6 {[%emt 0:05:07]} Ba6 {[%emt 0:01:33]} 17. Bxg7 {[%emt 0:03:35]} Kxg7 {[%emt 0:00:26]} 18. hxg6 {[%emt 0:00:31]} Nxd5 {[%emt 0:04:12]} 19. Qh6+ {[%emt 0:03:07] normal} 1-0

[Event "DVM U12 2019"]
[Site "Magedburg"]
[Date "2019.12.27"]
[Round "1"]
[White "Scheinmaier, Mark"]
[Black "Espig, Nils"]
[Result "1/2-1/2"]
[ECO "A57"]
[WhiteElo "1399"]
[BlackElo "1596"]
[Annotator "NA RC"]
[PlyCount "86"]
[EventDate "2019.12.27"]
[EventType "team-tourn"]
[EventRounds "7"]
[EventCountry "GER"]
[SourceTitle "playchess.com"]
[Source "ChessBase"]
[SourceQuality "1"]
[WhiteTeam "SF Neureut"]
[BlackTeam "USV TU Dresden"]
[TimeControl "40/5400+30:1800+30"]

1. d4 {[%emt 0:00:00]} Nf6 {[%emt 0:00:00]} 2. c4 {[%emt 0:00:32]} c5 {[%emt 0:00:43]} 3. d5 {[%emt 0:00:38]} b5 {[%emt 0:00:22]} 4. b3 {[%emt 0:00:28]} d6 {[%emt 0:01:14]} 5. Nd2 {[%emt 0:01:28]} g6 {[%emt 0:02:32]} 6. Bb2 {[%emt 0:01:11]} Bg7 {[%emt 0:00:59]} 7. e4 {[%emt 0:02:35]} b4 {[%emt 0:01:54]} 8. f4 {[%emt 0:03:00]} Nh5 {[%emt 0:08:09]} 9. Bxg7 {[%emt 0:00:51]} Nxg7 {[%emt 0:00:08]} 10. Be2 {[%emt 0:03:32]} Nd7 {[%emt 0:11:25]} 11. Ngf3 O-O 12. O-O {[%emt 0:03:55]} e6 {[%emt 0:03:36]} 13. a3 {[%emt 0:07:17]} bxa3 {[%emt 0:02:57]} 14. Rxa3 Re8 {[%emt 0:01:58]} 15. Nb1 {[%emt 0:05:49]} exd5 {[%emt 0:04:18]} 16. exd5 {[%emt 0:02:19]} Nf5 {[%emt 0:02:48]} 17. Re1 {[%emt 0:04:23]} Re4 {[%emt 0:06:50]} 18. Bd3 {[%emt 0:02:05]} Rxe1+ {[%emt 0:01:20]} 19. Qxe1 {[%emt 0:00:22]} Nf6 {[%emt 0:01:43]} 20. Nc3 {[%emt 0:01:29]} a6 {[%emt 0:02:55]} 21. Ne4 {[%emt 0:04:47]} Nxe4 {[%emt 0:01:12]} 22. Bxe4 {[%emt 0:01:01]} Qe7 {[%emt 0:01:15]} 23. Ra1 {[%emt 0:05:51]} Bd7 {[%emt 0:02:31]} 24. Bxf5 {[%emt 0:03:28]} Qxe1+ {[%emt 0:00:23]} 25. Rxe1 {[%emt 0:00:08]} Bxf5 {[%emt 0:00:12]} 26. Re7 {[%emt 0:00:33]} Kf8 {[%emt 0:00:23]} 27. Rb7 {[%emt 0:00:44]} a5 {[%emt 0:01:50]} 28. Ng5 {[%emt 0:05:01]} h5 {[%emt 0:10:29]} 29. Rxf7+ {[%emt 0:03:30]} Kg8 {[%emt 0:00:53]} 30. Rf6 {[%emt 0:08:04]} Rd8 {[%emt 0:05:27]} 31. Ne6 {[%emt 0:03:42]} Rb8 {[%emt 0:03:17]} 32. Nc7 {[%emt 0:03:43]} Rxb3 {[%emt 0:02:52]} 33. Rxd6 {[%emt 0:00:15]} Rc3 {[%emt 0:01:23]} 34. Rc6 {[%emt 0:02:57]} Rxc4 {[%emt 0:00:56]} 35. Na6 {[%emt 0:01:08]} Be4 {[%emt 0:02:50]} 36. Rc8+ {[%emt 0:04:42]} Kf7 {[%emt 0:00:23]} 37. Rc7+ {[%emt 0:05:04]} Kf6 {[%emt 0:01:31]} 38. Nxc5 {[%emt 0:04:26]} Bxd5 {[%emt 0:01:17]} 39. Nd7+ {[%emt 0:00:32]} Ke6 {[%emt 0:01:12]} 40. Rxc4 {[%emt 0:02:37]} Bxc4 41. Nc5+ Kd5 42. Na4 Bb3 43. Nb2 a4 {normal} 1/2-1/2

[Event "DVM U12 2019"]
[Site "Magedburg"]
[Date "2019.12.27"]
[Round "1"]
[White "Liu, Leon"]
[Black "Spranger, Tobias"]
[Result "0-1"]
[ECO "C50"]
[WhiteElo "1344"]
[BlackElo "1390"]
[Annotator "NA RC"]
[PlyCount "48"]
[EventDate "2019.12.27"]
[EventType "team-tourn"]
[EventRounds "7"]
[EventCountry "GER"]
[SourceTitle "playchess.com"]
[Source "ChessBase"]
[SourceQuality "1"]
[WhiteTeam "Karlsruher SF"]
[BlackTeam "SV Empor Berlin"]
[TimeControl "40/5400+30:1800+30"]

1. e4 {[%emt 0:00:00]} e5 {[%emt 0:00:00]} 2. Nf3 {[%emt 0:00:00]} Nc6 {[%emt 0:00:00]} 3. Bc4 {[%emt 0:00:00]} Bc5 {[%emt 0:00:00]} 4. d3 {[%emt 0:00:00]} d6 {[%emt 0:00:01]} 5. h3 {[%emt 0:01:34]} h6 {[%emt 0:00:27]} 6. c3 Nf6 7. Nbd2 {[%emt 0:03:30]} O-O {[%emt 0:01:11]} 8. Nf1 {[%emt 0:02:00]} Be6 {[%emt 0:02:49]} 9. Bb3 {[%emt 0:01:26]} d5 {[%emt 0:03:34]} 10. exd5 {[%emt 0:02:05]} Bxd5 {[%emt 0:00:21]} 11. Ne3 {[%emt 0:01:58]} Bxf3 {[%emt 0:01:46]} 12. gxf3 {[%emt 0:00:38]} Qd7 {[%emt 0:02:32]} 13. Ba4 {[%emt 0:02:36]} Rad8 {[%emt 0:01:00]} 14. b4 {[%emt 0:03:55]} Bb6 {[%emt 0:02:58]} 15. Bc2 {[%emt 0:05:02]} Ne7 {[%emt 0:04:09]} 16. a4 {[%emt 0:02:20]} c6 {[%emt 0:02:04]} 17. Qe2 {[%emt 0:03:32]} Ned5 {[%emt 0:04:07]} 18. Nxd5 {[%emt 0:00:58]} Nxd5 {[%emt 0:00:42]} 19. Rg1 {[%emt 0:01:00]} Qxh3 {[%emt 0:03:03]} 20. d4 {[%emt 0:13:30]} exd4 {[%emt 0:02:11]} 21. Qd3 {[%emt 0:01:58]} Rfe8+ {[%emt 0:01:03]} 22. Kd2 {[%emt 0:02:50]} dxc3+ {[%emt 0:01:17]} 23. Kd1 {[%emt 0:01:40]} Nf6 {[%emt 0:00:35]} 24. a5 {[%emt 0:01:55]} Qxf3# {normal} 0-1